Cogmind - Beta 17 @@@ ROGUE MODE // 2026.07.09 @ 11:30:09 Player: pinbox Result: Destroyed by G-67 Veteran with Field Laser Performance ------------- Evolutions (7) 3500 Regions Visited (8) 1600 Robots Destroyed (45) 225 Value Destroyed (2036) 2036 Prototype IDs (7) 140 Alien Tech Used (0) 0 Bonus (800) 800 TOTAL SCORE: 8301 Bonus ------- Registered with UFD 300 Met Optimus in HQ 500 Cogmind --------- Core Integrity 0/1300 Matter 300/300 Energy 100/100 System Corruption 0% Temperature Cool (21) Movement Core (50) Location -3/Research Parts ------- > --- POWER (2) -------- (None) > --- PROPULSION (5) --- (None) > --- UTILITY (10) ----- (None) > --- WEAPON (4) ------- (None) > --- INVENTORY (5) ---- Centrium Wheel Graphene Brace Improved Remote Datajack Peak State ------------ > --- POWER ------------ Neutrino Core > --- PROPULSION ------- Centrium Wheel Centrium Wheel Centrium Wheel Centrium Wheel > --- UTILITY ---------- Scrap Suit Improved Heat Sink Improved Signal Interpreter Long-range Terrain Scanner Improved Particle Charger Medium Reflective Plating Graphene Brace > --- WEAPON ----------- High-powered Shock Rifle Proton Cannon Proton Cannon Heavy Flail > --- INVENTORY -------- Centrium Wheel Centrium Wheel Centrium Wheel Improved Remote Datajack [Rating: 91] Favorites ----------- Power Light Fission Core Engine Ion Engine Power Core Light Fission Core Reactor Light Antimatter Reactor Propulsion Light Treads Treads Light Treads Leg Flexi-carbon Leg Wheel Centrium Wheel Hover Unit Improved Antigrav System Utility Sensor Array Device Sensor Array Storage Large Storage Unit Processor Improved Signal Interpreter Protection Weapon Shielding Weapon Heavy Battle Rifle Energy Gun Medium Laser Energy Cannon Matter Neutralizer Ballistic Gun Heavy Battle Rifle Ballistic Cannon Gauss Cannon Launcher Long-range Missile Launcher Special Weapon Improved Remote Datajack Impact Weapon Heavy Flail Slashing Weapon Greatsword Build | -11 -10 -10 -7 -5 -5 -5 -4 -3 ------- Run | Yrd Mat Sub Scr Fac Upp Upp Fac Res Slots Evolved 14 | . . . . 10 . . 2 2 Power 1 | . . . . . . . 1 . Propulsion 3 | . . . . 1 . . 1 1 Utility 8 | . . . . 7 . . . 1 Weapon 2 | . . . . 2 . . . . Parts Attached 86 | 7 2 2 5 14 23 4 26 3 Power 7 | 1 1 . 1 . 2 . 2 . Engine 2 | 1 1 . . . . . . . Core 4 | . . . 1 . 2 . 1 . Reactor 1 | . . . . . . . 1 . Propulsion 20 | 2 . . . 2 3 1 11 1 Treads 7 | 2 . . . 2 3 . . . Leg 2 | . . . . . . 1 . 1 Wheel 7 | . . . . . . . 7 . Hover 4 | . . . . . . . 4 . Flight . | . . . . . . . . . Utility 40 | 2 1 2 1 10 12 2 8 2 Device 22 | 1 . 1 . 5 5 2 6 2 Storage 3 | 1 1 . 1 . . . . . Processor 4 | . . . . 3 1 . . . Hackware . | . . . . . . . . . Protection 11 | . . 1 . 2 6 . 2 . Artifact . | . . . . . . . . . Weapon 19 | 2 . . 3 2 6 1 5 . Energy Gun 5 | 1 . . . . 4 . . . Energy Cannon 3 | . . . . . . . 3 . Ballistic Gun 7 | 1 . . 3 1 1 . 1 . Ballistic Cannon 1 | . . . . 1 . . . . Launcher 1 | . . . . . 1 . . . Special Weapon 1 | . . . . . . . 1 . Impact Weapon . | . . . . . . . . . Slashing Weapon 1 | . . . . . . 1 . . Piercing Weapon . | . . . . . . . . . Special Melee Weapon . | . . . . . . . . . Unidentified Prototypes 1 | . . . . . 1 . . . Corrupted Parts 2 | . . . . . . . 2 . System Corruption 14 | . . . . . . . 14 . Parts Lost 67 | . 1 . . 6 21 13 16 10 Power 6 | . 1 . . . 2 1 2 . Propulsion 12 | . . . . 1 5 1 3 2 Utility 31 | . . . . 4 9 6 7 5 Weapon 18 | . . . . 1 5 5 4 3 Highest Loss Streak 13 | . 1 . . 4 13 7 8 5 To Critical Strikes . | . . . . . . . . . Average Backups 10 | 2 5 8 14 11 9 6 3 3 Power . | . . 1 . 1 . 1 . . Propulsion 2 | 1 3 3 3 3 . . 1 1 Utility 6 | . . 3 10 6 7 5 . . Weapon . | . . 1 . . . . . . Tool/Special . | . . . . . . . . . Unused Backups 15 | . 2 2 7 . . 4 . . Power 1 | . . . 1 . . . . . Propulsion 7 | . 2 2 3 . . . . . Utility 6 | . . . 2 . . 4 . . Weapon 1 | . . . 1 . . . . . Tool/Special . | . . . . . . . . . Average Slot Usage (%) 84 | . 99 100 97 96 85 69 45 24 Engine 1 | . 13 14 . . . . . . Core 7 | . . . 13 5 4 4 1 . Treads 18 | . 28 28 28 16 12 4 . . Wheel 1 | . . . . . . . 13 5 Device 14 | . 14 12 14 25 16 20 11 9 Storage 9 | . 14 14 14 5 5 3 . . Processor 3 | . . . . 10 8 5 5 2 Protection 4 | . . 1 . 6 16 8 . . Energy Gun 6 | . 14 14 4 . 9 12 . . Ballistic Gun 12 | . 14 14 20 16 4 . . 2 Peak Build Rating 91 | 7 7 8 22 54 75 76 91 48 Average Rating 33 | 4 6 7 16 51 61 61 52 32 On Entrance 26 | . 7 7 8 22 47 73 23 48 Avg Prop Armor Cover (%) 7 | . . . . . . . 7 . Naked Turns 29 | . . . . . . . . 29 Heaviest Build 104 | 13 30 30 55 84 104 103 57 20 Greatest Support 86 | 40 40 40 40 70 86 28 64 32 Greatest Overweight (x) 8 | . . . 1 1 3 5 8 . Average Overweight (x) . | . . . . . 1 1 . . Largest Inventory Capacity 20 | 8 15 15 20 20 20 20 5 5 Average Capacity 14 | 7 10 15 15 20 20 16 5 5 Most Carried 20 | 3 9 12 20 19 17 12 5 5 Average Carried 11 | 2 5 10 15 12 11 8 3 4 Final Capacity 20 | 8 15 15 20 20 20 5 5 5 Final Carried 20 | 3 9 12 20 13 10 1 3 3 Scrap Suit Usage (%) 4 | . . . . . . 17 37 . Parts Cannibalized 2 | . . . . . . 1 1 . Class Distribution -------------------- 69% | Mutant 9% | Derelict-Skirmisher 9% | Derelict-Tank 4% | Derelict-Mutant 4% | Derelict-Gunner Dominant Class ---------------- Mutant | -10/Materials Mutant | -10/Subcaves Mutant | -7/Scraptown Derelict-Gunner | -5/Factory Derelict-Tank | -5/Upper Caves Derelict-Skirmisher | -5/Upper Caves Mutant | -4/Factory Mutant | -3/Research Resources | -11 -10 -10 -7 -5 -5 -5 -4 -3 ----------- Run | Yrd Mat Sub Scr Fac Upp Upp Fac Res Matter Collected 1869 | 247 127 39 40 395 684 65 266 6 Remotely 326 | . . . . 250 76 . . . Salvage Created 2519 | 102 218 42 . 619 910 146 482 . Parts 87 | 3 14 5 . 18 27 5 15 . Haulers Intercepted 4 | . 2 . . 1 1 . . . Recyclers Shooed . | . . . . . . . . . Parts Field Recycled . | . . . . . . . . . Retrieved Matter . | . . . . . . . . . Parts Self-Destructed 29 | . . . . . 24 5 . . Prevented . | . . . . . . . . . Parts Restored . | . . . . . . . . . Kills | -11 -10 -10 -7 -5 -5 -5 -4 -3 ------- Run | Yrd Mat Sub Scr Fac Upp Upp Fac Res Combat Hostiles Destroyed 34 | . 3 1 . 5 15 2 8 . Melee 2 | . . . . . . . 2 . Guns 16 | . 3 1 . 2 8 2 . . Cannons 8 | . . . . 3 3 . 2 . AOE 3 | . . . . . 3 . . . Classes Destroyed 14 | 2 4 1 . 2 4 1 . . Worker 1 | . . . . 1 . . . . Tunneler 1 | 1 . . . . . . . . Hauler 4 | . 2 . . 1 1 . . . Recycler 3 | 1 . . . 2 . . . . Mechanic 1 | . . . . 1 . . . . Watcher 1 | . 1 . . . . . . . Swarmer 1 | . 1 . . . . . . . Grunt 22 | . 2 . . 5 11 1 3 . Brawler 1 | . . . . . 1 . . . Duelist 1 | . . . . . 1 . . . Sentry 2 | . . . . . 1 . 1 . Hunter 1 | . . . . . . 1 . . Programmer 5 | . . . . . 1 . 4 . Subdweller 1 | . . 1 . . . . . . Best Kill Streak 8 | 2 4 1 . 8 4 1 2 . Combat Bots Only 4 | . 2 1 . 4 4 1 2 . Max Kills in Single Turn 2 | 1 1 1 . 1 2 1 1 . Gunslinging . | . . . . . . . . . Exploded 2 | . . . . . 2 . . . Melee 1 | . . . . . . . 1 . Uniques/NPCs Destroyed . | . . . . . . . . . Combat | -11 -10 -10 -7 -5 -5 -5 -4 -3 -------- Run | Yrd Mat Sub Scr Fac Upp Upp Fac Res Hostile Shots Fired 790 | . 30 3 . 77 191 121 238 130 Missed 211 | . 7 2 . 29 42 30 66 35 Hits 579 | . 23 1 . 48 149 91 172 95 Melee 2 | . . . . . 2 . . . Projectile 577 | . 23 1 . 48 147 91 172 95 AOE 2 | . . . . . . . 2 . Critical Strikes 24 | . . . . 3 7 4 6 4 Actively Blocked 8 | . . . . . . . 6 2 Damage Taken 10961 | . 228 19 . 774 2755 1593 3567 2025 Core 2836 | . 30 . . 35 529 212 720 1310 Absorbed by Shields 765 | . . . . 246 519 . . . Redirected to Shielding 157 | . . . . 63 94 . . . Ignored by Resistances 294 | . . . . . 196 98 . . Regen/Repaired (Parts) 9 | . . . . . . 5 4 . Core Remaining (%) 61 | 100 . . 88 . . 22 37 . Volleys Fired 145 | 7 26 3 . 18 63 6 3 19 Largest 4 | 2 2 2 . 4 4 3 2 2 Hottest 251 | 70 70 70 . 126 225 251 150 138 Shots Fired 325 | 14 52 6 . 72 143 12 4 22 Gun 258 | 14 52 6 . 54 116 12 . 4 Cannon 63 | . . . . 18 24 . 3 18 Launcher 3 | . . . . . 3 . . . Special 1 | . . . . . . . 1 . Kinetic 199 | 7 26 3 . 72 87 . . 4 Thermal 119 | 7 26 3 . . 53 12 . 18 Explosive 3 | . . . . . 3 . . . Electromagnetic 3 | . . . . . . . 3 . Robot Hit Streak 11 | 8 6 7 . 9 10 11 3 2 Robot Miss Streak 8 | 3 8 . . 4 4 1 1 3 Penetration Max . | . . . . . . . . . Secondary Targets 5 | . 1 . . . 4 . . . Max Gunslinging Chain 1 | . 1 . . . 1 . . . Shots Hit Robots 220 | 9 26 6 . 41 91 11 33 3 Core Hits 90 | 3 10 3 . 24 37 5 6 2 Critical Kills 1 | . . . . 1 . . . . Critical Parts Destroyed 13 | . . . . . 3 . 10 . Critical Strikes 25 | . 2 . . 3 9 1 10 . Burn 4 | . 2 . . . 2 . . . Destroy 4 | . . . . 1 3 . . . Blast 6 | . . . . 2 4 . . . Smash 10 | . . . . . . . 10 . Sever 1 | . . . . . . 1 . . Melee Attacks 59 | . . . . . . 5 54 . Impact 54 | . . . . . . . 54 . Slashing 5 | . . . . . . 5 . . Piercing . | . . . . . . . . . Sneak Attacks 1 | . . . . . . . 1 . Combat Hostiles . | . . . . . . . . . Follow-up Attacks . | . . . . . . . . . Damage Inflicted 5792 | 109 348 74 . 1164 2299 298 1387 113 Guns 3101 | 109 348 74 . 695 1625 198 . 52 Cannons 789 | . . . . 310 404 . 38 37 Explosions 426 | . . . . 156 270 . . . Melee 1449 | . . . . . . 100 1349 . Ramming 27 | . . . . 3 . . . 24 Kinetic 2487 | 71 189 37 . 1005 1133 . . 52 Thermal 1521 | 38 159 37 . 156 896 198 . 37 Explosive 270 | . . . . . 270 . . . Electromagnetic 38 | . . . . . . . 38 . Impact 1349 | . . . . . . . 1349 . Slashing 100 | . . . . . . 100 . . Piercing . | . . . . . . . . . Highest Corruption 29 | . . . . . 3 3 29 . Average Corruption 5 | . . . . . 2 3 15 . Corruption Purged . | . . . . . . . . . Corruption Blocked . | . . . . . . . . . Effects 51 | . . . . . 18 7 26 . Message Errors 9 | . . . . . 2 3 4 . Matter Fused 11 | . . . . . 5 2 4 . Heat Flow Errors 7 | . . . . . 3 1 3 . Energy Discharges 2 | . . . . . 1 . 1 . Parts Rejected 3 | . . . . . . . 3 . Data Loss (minor) 6 | . . . . . 3 . 3 . Data Loss (major) 1 | . . . . . . 1 . . Misfires 3 | . . . . . 3 . . . Alerts 1 | . . . . . . . 1 . Misdirections 7 | . . . . . . . 7 . Weapon Failures 1 | . . . . . 1 . . . Overload Shots . | . . . . . . . . . Overflow Damage 657 | . . . . 37 29 . 591 . Projectiles 43 | . . . . 14 29 . . . Explosions 23 | . . . . 23 . . . . Melee 591 | . . . . . . . 591 . Knockbacks 12 | . . . . . 3 . 9 . Impact 8 | . . . . . . . 8 . Kinetic 3 | . . . . . 3 . . . Secondary 1 | . . . . . . . 1 . Self-Inflicted Damage 152 | . . . . 93 52 . . 7 Shots 3 | . . . . 2 1 . . . Rammed 5 | . . . . 1 . . . 4 Targets Rammed 15 | . . . . 1 . . . 14 Kicked 10 | . . . . . . . . 10 Crushed . | . . . . . . . . . Highest Temperature 779 | 36 129 . . 374 779 528 233 27 Average Temperature 166 | 15 42 . . 135 211 267 79 18 Received Heat Transfer 2801 | . 78 . . 311 848 722 288 554 Effects 34 | . . . . 2 27 5 . . Shutdowns 7 | . . . . 1 4 2 . . Energy Bleed 3 | . . . . . 3 . . . Interference 2 | . . . . . 2 . . . Matter Decay 3 | . . . . 1 1 1 . . Short Circuit 4 | . . . . . 4 . . . Damage (minor) 4 | . . . . . 4 . . . Damage (major) 9 | . . . . . 7 2 . . Damage (core) 2 | . . . . . 2 . . . Siege Activations . | . . . . . . . . . Martial Activations . | . . . . . . . . . Shielding Activations . | . . . . . . . . . Robots Disrupted . | . . . . . . . . . Combat Hostiles . | . . . . . . . . . Robots Corrupted 4 | . . . . . . . 4 . Combat Hostiles 4 | . . . . . . . 4 . Parts Fried 5 | . . . . . . . 5 . Impact Corruptions 19 | . . . . . . . 19 . Robots Melted 1 | . . . . . 1 . . . Combat Hostiles 1 | . . . . . 1 . . . Parts Melted 8 | 1 3 . . . 4 . . . Heat Transferred 2888 | 111 629 111 . 150 1517 333 . 37 Parts Sabotaged . | . . . . . . . . . Parts Stolen . | . . . . . . . . . Parts Stripped . | . . . . . . . . . Power Chain Reactions . | . . . . . . . . . Alert | -11 -10 -10 -7 -5 -5 -5 -4 -3 ------- Run | Yrd Mat Sub Scr Fac Upp Upp Fac Res Maximum Alert Level . | . . . . . . . . . Low Security (%) 100 | 100 100 . . 100 . . 100 100 Level 1 . | . . . . . . . . . Level 2 . | . . . . . . . . . Level 3 . | . . . . . . . . . Level 4 . | . . . . . . . . . Level 5 . | . . . . . . . . . High Security . | . . . . . . . . . Max Security . | . . . . . . . . . Peak Influence 188 | 5 34 . . 188 . . 142 169 Initial 50 | . . . . . . . . 50 Average 29 | 1 6 . . 36 . . 32 46 Influence Increases 1466 | 10 114 . . 277 340 75 395 255 Destroy 0b10 Robot/C 660 | . 60 . . 100 300 40 160 . Destroy 0b10 Robot/NC 55 | 10 15 . . 25 5 . . . Destroy Leader 108 | . 16 . . 12 20 20 40 . Successful Hack 20 | . 8 . . . . . . 12 Disable Machine 60 | . . . . 60 . . . . Destroy Structure 98 | . . . . 80 . . . 18 Partial Spotted 15 | . . . . . . . . 15 Lose Combat Pursuer 450 | . 15 . . . 15 15 195 210 Influence Decreases 1343 | 10 114 . . 143 474 75 298 229 Entered New Map 98 | . . . . . 51 . . 47 Time Decay 834 | 10 104 . . 83 295 26 188 128 Lost Part 411 | . 10 . . 60 128 49 110 54 Squads Dispatched 13 | . 1 . . 3 . . 4 5 Investigation 3 | . . . . . . . 1 2 Extermination 4 | . . . . 1 . . 2 1 Reinforcement 5 | . 1 . . 1 . . 1 2 Assault . | . . . . . . . . . Garrison 1 | . . . . 1 . . . . Intercept . | . . . . . . . . . Searches Triggered . | . . . . . . . . . Construction Impeded 2 | . . . . 1 . . . 1 Haulers Reinforced . | . . . . . . . . . Active Scanning Responses . | . . . . . . . . . Cargo Convoy Interrupts . | . . . . . . . . . Stealth | -11 -10 -10 -7 -5 -5 -5 -4 -3 --------- Run | Yrd Mat Sub Scr Fac Upp Upp Fac Res Distress Signals 2 | . . . . . . . 2 . Communications Jammed . | . . . . . . . . . Distress Signals . | . . . . . . . . . Times Spotted 102 | . 8 1 . 13 17 7 32 24 Peak Tracking Total 15 | . 3 1 . 6 5 5 11 15 Tactical Retreats 17 | . 1 . . . 1 1 9 5 ECM-based Alert Blocks 8 | . . . . . . . 1 7 Traps | -11 -10 -10 -7 -5 -5 -5 -4 -3 ------- Run | Yrd Mat Sub Scr Fac Upp Upp Fac Res Traps Triggered 3 | . . . . 1 . . . 2 Indirectly . | . . . . . . . . . Trap Hack Attempts . | . . . . . . . . . Triggered . | . . . . . . . . . Disarmed . | . . . . . . . . . Reprogrammed . | . . . . . . . . . Reused . | . . . . . . . . . Traps Extracted . | . . . . . . . . . Installed . | . . . . . . . . . Triggered . | . . . . . . . . . Machines | -11 -10 -10 -7 -5 -5 -5 -4 -3 ---------- Run | Yrd Mat Sub Scr Fac Upp Upp Fac Res Machines Disabled 4 | . . . . 4 . . . . Max in Single Turn 4 | . . . . 4 . . . . Machines Repaired . | . . . . . . . . . Machines Dismantled . | . . . . . . . . . Machines Sabotaged . | . . . . . . . . . Overloaded Fab Kills . | . . . . . . . . . Hacking | -11 -10 -10 -7 -5 -5 -5 -4 -3 --------- Run | Yrd Mat Sub Scr Fac Upp Upp Fac Res Machines Accessed 18 | . 2 . 9 1 1 1 2 2 Terminals 4 | . 2 . . 1 . . 1 . Fabricators . | . . . . . . . . . Repair Stations . | . . . . . . . . . Recycling Units 2 | . . . . . . . 1 1 Scanalyzers 1 | . . . . . . . . 1 Garrison Access . | . . . . . . . . . Total Hacks 84 | . 9 . 64 3 1 1 2 4 Successful 71 | . 3 . 64 . 1 1 1 1 Failed 13 | . 6 . . 3 . . 1 3 Catastrophic 3 | . . . . 1 . . 1 1 Database Lockouts . | . . . . . . . . . Manual 10 | . 4 . . 3 . . 2 1 Terminals 13 | . 9 . . 3 . . 1 . Fabricators . | . . . . . . . . . Repair Stations . | . . . . . . . . . Recycling Units 2 | . . . . . . . 1 1 Scanalyzers 3 | . . . . . . . . 3 Garrison Access . | . . . . . . . . . Terminal Hacks 69 | . 3 . 64 . 1 1 . . Record 64 | . . . 63 . . 1 . . Open Door 1 | . . . . . 1 . . . Registered Components 1 | . 1 . . . . . . . Zone Layout 2 | . 2 . . . . . . . Proto ID Catalog 1 | . . . 1 . . . . . Fabricator Hacks . | . . . . . . . . . Repair Station Hacks . | . . . . . . . . . Recycling Unit Hacks . | . . . . . . . . . Scanalyzer 1 | . . . . . . . . 1 Retrieve Study 1 | . . . . . . . . 1 Garrison Access Hacks . | . . . . . . . . . Unauthorized Hacks 1 | . . . . . . . 1 . Terminals . | . . . . . . . . . Fabricators . | . . . . . . . . . Repair Stations . | . . . . . . . . . Recycling Units 1 | . . . . . . . 1 . Fedlink 1 | . . . . . . . 1 . Scanalyzers . | . . . . . . . . . Garrison Access . | . . . . . . . . . Data Cores Recovered . | . . . . . . . . . Used . | . . . . . . . . . Hacking Detections 6 | . 2 . . 1 . . 1 2 Full Trace Events 1 | . . . . . . . . 1 Feedback Events . | . . . . . . . . . Feedback Blocked . | . . . . . . . . . Robot Schematics Acquired . | . . . . . . . . . Robots Built . | . . . . . . . . . Authchips . | . . . . . . . . . Time . | . . . . . . . . . Total Robot Build Rating . | . . . . . . . . . Part Schematics Acquired . | . . . . . . . . . Parts Built . | . . . . . . . . . Authchips . | . . . . . . . . . Time . | . . . . . . . . . Total Part Build Rating . | . . . . . . . . . Part Studies Acquired 1 | . . . . . . . . 1 Parts Repaired . | . . . . . . . . . Time . | . . . . . . . . . Parts Recycled . | . . . . . . . . . Recycled Matter . | . . . . . . . . . Retrieved Matter . | . . . . . . . . . Retrieved Components . | . . . . . . . . . Parts Scanalyzed . | . . . . . . . . . Part Schematics Acquired . | . . . . . . . . . Parts Damaged . | . . . . . . . . . Bothacking | -11 -10 -10 -7 -5 -5 -5 -4 -3 ------------ Run | Yrd Mat Sub Scr Fac Upp Upp Fac Res Used RIF Installer . | . . . . . . . . . Robots Hacked 1 | . . . . . . . 1 . Non-combat . | . . . . . . . . . Combat 1 | . . . . . . . 1 . Robot Hacks Applied 1 | . . . . . . . 1 . parse_system 1 | . . . . . . . 1 . Relay Couplers Released . | . . . . . . . . . Fabnet Peak Effective % . | . . . . . . . . . Robots Rewired . | . . . . . . . . . Allies Hacked . | . . . . . . . . . Hacks Repelled . | . . . . . . . . . Allies | -11 -10 -10 -7 -5 -5 -5 -4 -3 -------- Run | Yrd Mat Sub Scr Fac Upp Upp Fac Res Total Allies . | . . . . . . . . . Largest Group . | . . . . . . . . . Highest-Rated Group . | . . . . . . . . . Highest-Rated Ally . | . . . . . . . . . Initial UFD Resources 53 | . . . . 37 37 37 39 53 Total Orders . | . . . . . . . . . Ally Attacks . | . . . . . . . . . Total Damage . | . . . . . . . . . Kills . | . . . . . . . . . Allies Corrupted . | . . . . . . . . . Allies Melted . | . . . . . . . . . Intel | -11 -10 -10 -7 -5 -5 -5 -4 -3 ------- Run | Yrd Mat Sub Scr Fac Upp Upp Fac Res Active Infowar (turns) 7436 | 29 429 158 4000 408 1610 472 304 26 Sensors 6536 | . . 81 4000 408 1610 437 . . Terrain 1375 | . . . . . 591 472 290 22 Seismic 535 | 29 429 77 . . . . . . Jamming 127 | . . . . . 127 . . . ECM 136 | . . . . . . . 132 4 Robot Analysis Total . | . . . . . . . . . Derelict Logs Recovered 3 | . . 1 2 . . . . . Drone Launches . | . . . . . . . . . Drone Recoveries . | . . . . . . . . . Exploration | -11 -10 -10 -7 -5 -5 -5 -4 -3 ------------- Run | Yrd Mat Sub Scr Fac Upp Upp Fac Res Turns Passed 8622 | 115 429 183 4000 464 1709 519 753 450 Spaces Moved 4580 | 45 211 104 2367 153 561 167 555 417 Core 227 | 2 . . . . . 1 1 223 Treads 3540 | 43 211 104 2367 153 561 101 . . Legs 72 | . . . . . . 65 7 . Wheels 548 | . . . . . . . 354 194 Hover 193 | . . . . . . . 193 . Flight . | . . . . . . . . . Fastest Speed 48 | 50 160 160 160 163 160 120 48 50 Average Speed 165 | 155 160 160 167 242 258 279 80 68 Slowest Speed 450 | 160 160 160 240 245 400 400 450 90 Overloaded Moves . | . . . . . . . . . Propulsion Burnouts . | . . . . . . . . . Robots Hopped . | . . . . . . . . . Potential Cave-ins . | . . . . . . . . . Cave-ins Triggered . | . . . . . . . . . Exploration Rate (%) 31 | 4 38 16 92 5 77 20 16 12 Regions Visited 8 Branch Regions 4 Pre-discovered Areas 1 | . . . 1 . . . . . Known Exits Taken 3 | . . . . . 1 1 1 . Unknown Exits Taken 5 | 1 1 1 1 1 . . . . Scrap Searched 9 | . . . 6 . 3 . . . Spaces Dug 14 | . . . . . . . . 14 Terrain Destroyed 128 | . . . . 42 67 . . 19 Melee . | . . . . . . . . . Projectile 47 | . . . . 9 19 . . 19 AOE 81 | . . . . 33 48 . . . Terrain Rammed . | . . . . . . . . . Walls Destroyed . | . . . . . . . . . Machines Disabled . | . . . . . . . . . Actions | -11 -10 -10 -7 -5 -5 -5 -4 -3 --------- Run | Yrd Mat Sub Scr Fac Upp Upp Fac Res Total 5285 | 73 252 117 2411 201 701 198 774 558 Wait 272 | 12 2 . . 5 36 10 113 94 Move 4572 | 44 210 103 2366 152 560 166 554 417 Hop . | . . . . . . . . . Pick Up 66 | 3 9 5 21 6 12 2 7 1 Fast Attach 46 | 7 . . 4 4 7 1 20 3 Attach 53 | . 1 2 . 14 18 5 9 4 Detach 22 | . . 2 1 1 5 2 6 5 Swap 2 | . 1 . 1 . . . . . Drop 33 | . 3 2 18 . . 1 8 1 Fire 145 | 7 26 3 . 18 63 6 3 19 Melee 59 | . . . . . . 5 54 . Ram 4 | . . . . . . . . 4 Kick 10 | . . . . . . . . 10 Crush 1 | . . . . 1 . . . . Escape Stasis . | . . . . . . . . . Rewire . | . . . . . . . . . Trap . | . . . . . . . . . Miscellaneous . | . . . . . . . . . Route ------- -11/Scrapyard -10/Materials (discovered 2 exits: [*Mat] / [*Sub]) -10/Subcaves -7/Scraptown (discovered 2 exits: *Fac x2) -5/Factory (discovered 2 exits: *Upp x2) -5/Upper Caves -5/Upper Caves -4/Factory -3/Research (discovered 1 exit: Qua) History --------- Turn | Location | Event 15 | -11/Scrapyard | Discovered new exit (range 15) 116 | -11/Scrapyard | Entered Materials 215 | -10/Materials | Discovered new exit (range 10) 302 | -10/Materials | Build established: Mutant 533 | -10/Materials | Discovered new exit (range 7) 545 | -10/Materials | Entered Subcaves 546 | -10/Subcaves | Approached by a straggling Scientist 553 | -10/Subcaves | Learned 4 Materials zone layouts 726 | -10/Subcaves | Scientist uncovered a shortcut to Scraptown 728 | -10/Subcaves | Entered Scraptown 1054 | -7/Scraptown | Scanned Subdweller tech in exchange for log data 1059 | -7/Scraptown | Learned location of Quarantine (-3) 1081 | -7/Scraptown | Discovered new exit (range 7) 1225 | -7/Scraptown | Visited Awakened 1284 | -7/Scraptown | Visited Bundlers 1381 | -7/Scraptown | Visited Cave Peace 1483 | -7/Scraptown | Visited Assassins FH 1557 | -7/Scraptown | Visited UFD Registry 1557 | -7/Scraptown | Registered with UFD as "Flakcase" 1581 | -7/Scraptown | Visited Junk Repository 1761 | -7/Scraptown | Visited Cyclists 1785 | -7/Scraptown | Entered Cyclist Reading Room 1813 | -7/Scraptown | Visited CPS Storage 2980 | -7/Scraptown | Guru changed UFD alias to "Autoslider" 3203 | -7/Scraptown | Visited Science Guys 3275 | -7/Scraptown | Visited Chapter 10 3324 | -7/Scraptown | Visited Scrapoid Pod Storage 3422 | -7/Scraptown | Discovered new exit (range 3) 3542 | -7/Scraptown | Visited Curators Association 3595 | -7/Scraptown | Visited Scrap Suit Storage 3675 | -7/Scraptown | Visited DA-N13 Charitable Foundation 3681 | -7/Scraptown | Found DCF Scrap (29 items) 4006 | -7/Scraptown | Visited LU-1G1's Boring Crew 4099 | -7/Scraptown | Visited Junk Repository 4482 | -7/Scraptown | Found Scrap Suit 4570 | -7/Scraptown | Met Optimus 4570 | -7/Scraptown | Accepted into 0bPrime 4728 | -7/Scraptown | Entered Factory 4728 | -5/Factory | Evolved 10 slots: Propulsion x1, Utility x7, Weapon x2 4793 | -5/Factory | Discovered new exit (range 16) 4920 | -5/Factory | Found Hvy. Reflective Plating 4973 | -5/Factory | Discovered new exit (range 15) 5026 | -5/Factory | Build established: Derelict-Gunner 5065 | -5/Factory | Garrison activated, responded to threat 5192 | -5/Factory | Entered Upper Caves 5217 | -5/Upper Caves | Lost 4 parts (1n2u1w) 5292 | -5/Upper Caves | Lost 6 parts (1p1n3u1w) 5606 | -5/Upper Caves | Build established: Derelict-Tank 6199 | -5/Upper Caves | Attracted the attention of an 0b10 outpost 6257 | -5/Upper Caves | Core integrity fell below 50% 6310 | -5/Upper Caves | Lost 13 parts (1p3n6u3w) 6795 | -5/Upper Caves | Build established: Derelict-Skirmisher 6807 | -5/Upper Caves | Discovered new exit (range 22) 6897 | -5/Upper Caves | Identified exit to Upper Caves 6901 | -5/Upper Caves | Entered another Upper Caves area 6990 | -5/Upper Caves | Entered a destroyed Warlord outpost 7332 | -5/Upper Caves | Lost 6 parts (3u3w) 7383 | -5/Upper Caves | Lost 7 parts (1p1n3u2w) 7396 | -5/Upper Caves | Discovered new exit (range 9) 7404 | -5/Upper Caves | Identified exit to Factory 7420 | -5/Upper Caves | Entered Factory 7420 | -4/Factory | Evolved 2 slots: Power x1, Propulsion x1 7529 | -4/Factory | Spotted B-86 Titan 7644 | -4/Factory | Build established: Mutant 7706 | -4/Factory | System corruption reached 10% 7768 | -4/Factory | Lost 8 parts (1p4u3w) 8021 | -4/Factory | Core integrity fell below 50% 8112 | -4/Factory | Lost 3 parts (2n1w) 8114 | -4/Factory | Loaded intel: 8 recycling unit locations 8162 | -4/Factory | Discovered new exit (range 12) 8172 | -4/Factory | Identified exit to Research 8173 | -4/Factory | Entered Research 8173 | -3/Research | Evolved 2 slots: Propulsion x1, Utility x1 8174 | -3/Research | Identified exit to Quarantine 8227 | -3/Research | Spotted B-86 Titan 8475 | -3/Research | Core integrity fell below 50% 8483 | -3/Research | Lost 5 parts (2u3w) 8617 | -3/Research | Core integrity fell below 20% 8623 | -3/Research | Destroyed by G-67 Veteran with Field Laser Last Messages --------------- Effective improvements: -10 time/move 08570_ ALERT: Suspicious activity at Scanalyzer R003. Dispatching Investigation squad. 08589_ ALERT: Security rotation in progress. 08600_ ALERT: Potential suspicious activity detected, Programmers report to Research Zone 3Y. 08605_ Slammed into G-73 Enforcer. 08605_ Centrium Wheel+ destroyed. 08607_ Reaction Control System destroyed. 08608_ Kicked G-73 Enforcer. 08614_ Critical hit (Burn: +50). 08614_ Kicked G-73 Enforcer. 08618_ Kicked G-73 Enforcer out of the way. 08619_ Imp. Thunder Leg destroyed. 08620_ Slammed into G-73 Enforcer. 08621_ Scanalyzer unresponsive. 08621_ Slammed into G-73 Enforcer. 08622_ Critical hit (Burn: +50). Map ----- +----------------------------------------------------+ | ?????????????????????????????????????????????????? | | ?????????????????????????????????????????????????? | | ?????????????????????????????????????????????????? | | ?????????????????????????????????????????????????? | | ?????????????????????????????????????????????????? | | ?????????????????????????????????????????????????? | | ?????????????????????????????????????????????????? | | ?????????????????????????????????????????????????? | | ?????????????????????????????????????????????????? | | ?????????????????????????????????????????????????? | | ?????????????????????????????????????????????????? | | ?????????????????????????????????????????????????? | | ?????????????????????????????????????????????????? | | ?????????????????????????????????????????????????? | | ???????????????????????????????????######????????? | | ???????????????????????????????#??? #???????## | | ???????????????????????????????# #???????# | | ???????????????????????????????# """ ######### | | ???????????????????????????????# """ # ! ## | | ???????????????????????????????# """ ! # ## | | ???????????????????????????????# # ## | | ????????????????????###########? # ## | | ????????????????????# #??? # #? | | ????????????????????# #????? # ???? | | ????????????????????# % g########+####+###### | | ????????????????????# g@ g/g | | ????????????????????# % g# | | ????????????????????# ""%"" ##+#####+########### | | ????????????????????# ""S"" ## ? #????????? | | ????????????????????# """" ## #????????? | | ????????????????????############ """#????????? | | ???????????????????????????????# """#????????? | | ???????????????????????????????# """#????????? | | ???????????????????????????????# """#????????? | | ???????????????????????????????# """#????????? | | ???????????????????????????????# ?????????? | | ???????????????????????????????# ! ?????????? | | ???????????????????????????????#########?????????? | | ?????????????????????????????????????????????????? | | ?????????????????????????????????????????????????? | | ?????????????????????????????????????????????????? | | ?????????????????????????????????????????????????? | | ?????????????????????????????????????????????????? | | ?????????????????????????????????????????????????? | | ?????????????????????????????????????????????????? | | ?????????????????????????????????????????????????? | | ?????????????????????????????????????????????????? | | ?????????????????????????????????????????????????? | | ?????????????????????????????????????????????????? | | ?????????????????????????????????????????????????? | +----------------------------------------------------+ Best States ------------- Heat Dissipation 65 Energy Generation 21 Energy Capacity 315 Matter Stores 300 Matter Capacity 300 Sight Range 16 Robot Scan Range 14 Terrain Scan Range 24 Terrain Scan Density 10 ECM Strength 2 Jamming Range 14 Armor Coverage 825 Resistance: TH 25 Weapon Shielding 33 Evasion (%) 58 Targeting Accuracy 5 Target Analysis 5 Recoil Reduction 3 Matter Filtering 30 Energy Filtering 50 Particle Charging 20 Kinecelleration 30 Item Schematics ----------------- None Robot Schematics ------------------ None Fabricated ------------ Nothing Repaired ---------- Nothing Studied --------- Centrium Wheel | -3/Research | Hacked Alien Tech Used ----------------- None Achievements -------------- None Challenges ------------ None Game ------ Seed LatentSalvageKatana Manual? 0 Play Time 01:19:36 Cumulative 36.3 hours Start 2026.07.09 @ 10:10:34 End 2026.07.09 @ 11:30:09 Sessions 1 Manual Loads 0 Difficulty Rogue Special Mode None Game No. 39 Rogue 39 Adventurer 0 Explorer 0 Win Type - Total 1 Types 1/0/0/0/0/0/0/0/0/0 Lore% 36 Gallery% 33 Achievement% 30 Wizard Run 0 Options --------- Layout 1 ASCII 0 Keyboard 1 Movement Numpad Keybinds 1 Fullscreen 2 Font 24/Smallcaps Map View 50x40 Zoom Use 0% Tactical HUD 1 Map Filters NONE Filters NONE Steam 1 RUN: ee609076-0658-433c-b3c9-10879450f756